bitfinex-derivatives/quotes_BTCF0:USTF0_20241227
["timestamp","ask_amount","ask_price","bid_price","bid_amount"]
[1735335040772,0.066824,94800.0,94799.0,0.001]
[1735335041374,0.061824,94800.0,94799.0,0.001]
[1735335041575,0.066824,94800.0,94799.0,0.002]
[1735335058490,0.427624,94800.0,94799.0,0.002]
[1735335060289,0.427624,94800.0,94798.0,0.052825]
[1735335060591,0.052824,94799.0,94798.0,0.02179368]
[1735335061482,0.052824,94799.0,94798.0,0.02279368]
[1735335062087,0.052824,94799.0,94798.0,0.002]
[1735335062400,0.057824,94799.0,94798.0,0.001]
[1735335063184,0.057824,94799.0,94783.0,0.3608]
[1735335063388,0.052831,94787.0,94785.0,0.052832]
[1735335064688,0.055831,94787.0,94785.0,0.052832]
[1735335064891,0.003,94787.0,94786.0,0.052832]
[1735335065391,0.006,94787.0,94786.0,0.052832]
[1735335066387,0.003,94787.0,94786.0,0.052832]
[1735335066598,0.006,94787.0,94786.0,0.052832]
[1735335066999,0.003,94787.0,94786.0,0.052832]
[1735335067302,0.006,94787.0,94786.0,0.052832]
[1735335067598,0.007,94787.0,94786.0,0.052832]
[1735335067795,0.004,94787.0,94786.0,0.052832]
[1735335068100,0.003,94787.0,94786.0,0.052832]
[1735335068396,0.007,94787.0,94786.0,0.052832]
[1735335071086,0.007,94787.0,94781.0,0.3608]
[1735335071292,0.052832,94786.0,94783.0,0.052833]
[1735335071492,0.007,94787.0,94785.0,0.052832]
[1735335072104,0.004,94787.0,94785.0,0.052832]
[1735335072397,0.006,94787.0,94785.0,0.052832]
[1735335073197,0.004,94787.0,94785.0,0.052832]
[1735335073798,0.005,94787.0,94785.0,0.052832]
[1735335074409,0.006,94787.0,94785.0,0.052832]
[1735335074907,0.058831,94787.0,94785.0,0.052832]
[1735335075114,0.058831,94787.0,94781.0,0.25144547]
[1735335075115,0.052834,94782.0,94781.0,0.25144547]
[1735335075315,0.052834,94782.0,94781.0,0.21841109]
[1735335075603,0.052838,94774.0,94773.0,0.31594922]
[1735335075809,0.05284,94772.0,94770.0,0.01307095]
[1735335077210,0.05384,94772.0,94770.0,0.01307095]
[1735335078305,0.05584,94772.0,94770.0,0.01307095]
[1735335082514,0.15816658,94771.0,94770.0,0.01307095]
[1735335083813,0.15916658,94771.0,94770.0,0.01307095]
[1735335084115,0.001,94771.0,94770.0,0.01307095]
[1735335084608,0.003,94771.0,94770.0,0.01307095]
[1735335085116,0.15814098,94780.0,94770.0,1.92671195]
[1735335085315,0.15814098,94780.0,94779.0,0.413636]
[1735335085316,0.13713531,94780.0,94779.0,0.413636]
[1735335085916,0.13713531,94780.0,94779.0,1.913636]
[1735335086119,0.052827,94794.0,94788.0,0.05283]
[1735335087821,0.3608,94797.0,94788.0,0.05283]
[1735335088120,0.052828,94793.0,94788.0,0.05283]
[1735335088417,0.052828,94793.0,94788.0,0.05383]
[1735335088825,0.05283,94790.0,94788.0,0.001]
[1735335089027,0.05283,94790.0,94780.0,0.0313]
[1735335089028,0.052834,94781.0,94780.0,0.0313]
[1735335089722,0.052832,94786.0,94780.0,0.3921]
[1735335089924,0.052832,94785.0,94780.0,0.3921]
[1735335090223,0.005,94781.0,94780.0,0.3931]
[1735335090623,0.005,94781.0,94780.0,0.0323]
[1735335091218,0.009,94781.0,94780.0,0.0323]
[1735335091526,0.009,94781.0,94780.0,0.04482205]
[1735335091723,0.004,94781.0,94780.0,0.04482205]
[1735335091926,0.004,94781.0,94780.0,1.54482205]
[1735335092224,0.05283,94790.0,94780.0,0.04382205]
[1735335092421,0.05283,94790.0,94784.0,0.052833]
[1735335092735,0.05283,94790.0,94785.0,0.052832]
[1735335092924,0.3608,94798.0,94780.0,0.04482205]
[1735335092925,0.005,94781.0,94780.0,0.04482205]
[1735335093223,0.005,94781.0,94780.0,0.09765705]
[1735335094125,0.005,94781.0,94780.0,1.59765705]
[1735335094321,0.009,94781.0,94780.0,1.59765705]
[1735335094922,0.004,94781.0,94780.0,0.01252205]
[1735335095122,0.004,94781.0,94774.0,0.052838]
[1735335095524,0.009,94781.0,94780.0,0.001]
[1735335095723,0.3698,94781.0,94780.0,0.001]
[1735335096124,0.422634,94781.0,94780.0,0.001]
[1735335096627,0.422634,94781.0,94771.0,0.09869775]
[1735335096628,0.052837,94778.0,94771.0,0.09869775]
[1735335097226,0.052837,94778.0,94773.0,0.052838]
[1735335097418,0.3658,94781.0,94771.0,0.04585775]
[1735335097618,0.3698,94781.0,94771.0,0.04585775]
[1735335097818,0.3698,94781.0,94777.0,0.052837]
[1735335098224,0.3668,94781.0,94780.0,0.001]
[1735335098816,0.3618,94781.0,94777.0,0.052837]
[1735335099135,0.3648,94781.0,94777.0,0.052837]
[1735335099426,0.3698,94781.0,94780.0,0.001]
[1735335099927,0.420635,94781.0,94777.0,0.052837]
[1735335100128,0.052835,94780.0,94777.0,0.052837]
[1735335101633,0.055835,94780.0,94777.0,0.052837]
[1735335102035,0.059835,94780.0,94777.0,0.052837]
[1735335102239,0.056835,94780.0,94777.0,0.052837]
[1735335102536,0.055835,94780.0,94777.0,0.052837]
[1735335102731,0.052836,94779.0,94771.0,0.09869775]
[1735335102931,0.052836,94779.0,94772.0,0.052839]
[1735335103532,0.007,94780.0,94771.0,0.01265775]
[1735335103739,0.052836,94779.0,94767.0,0.413642]
[1735335104128,0.007,94780.0,94767.0,0.4263394]
[1735335104129,0.052839,94773.0,94767.0,0.4263394]
[1735335104932,0.052839,94773.0,94768.0,0.052841]
[1735335105337,0.053839,94773.0,94768.0,0.052841]
[1735335105541,0.055839,94773.0,94768.0,0.052841]
[1735335105845,0.054839,94773.0,94768.0,0.052841]
[1735335106034,0.055839,94773.0,94768.0,0.052841]
[1735335108945,0.003,94773.0,94759.0,0.3608]
[1735335109134,0.052845,94763.0,94759.0,0.3608]
[1735335109339,0.052845,94763.0,94759.0,0.37331476]
[1735335109948,0.052845,94763.0,94760.0,0.052846]
[1735335111945,0.052845,94763.0,94760.0,0.055846]
[1735335113759,0.0312,94771.0,94760.0,0.003]
[1735335113942,0.052842,94768.0,94762.0,0.052845]
[1735335114138,0.052843,94767.0,94762.0,0.052845]
[1735335115350,0.052843,94766.0,94762.0,0.052845]
[1735335115858,0.052843,94766.0,94762.0,0.054845]
[1735335116658,0.052843,94765.0,94762.0,0.054845]
[1735335118459,0.053843,94765.0,94762.0,0.054845]
[1735335122752,0.001,94765.0,94762.0,0.002]
[1735335122957,0.052844,94764.0,94762.0,0.002]
[1735335123667,0.052845,94763.0,94762.0,0.002]
[1735335126352,0.001,94763.0,94762.0,0.002]
[1735335126557,0.001,94763.0,94762.0,0.054845]
[1735335129365,0.052843,94767.0,94762.0,0.054845]
[1735335129571,0.001,94763.0,94762.0,0.054845]
[1735335129760,0.001,94763.0,94762.0,0.053845]
[1735335130168,0.052843,94767.0,94762.0,0.053845]
[1735335130468,0.001,94763.0,94762.0,0.053845]
[1735335131267,0.052843,94765.0,94762.0,0.052845]
[1735335131565,0.052843,94765.0,94762.0,0.053845]
[1735335132871,0.001,94763.0,94762.0,0.053845]
[1735335133472,0.052843,94765.0,94762.0,0.053845]
[1735335133668,0.052845,94763.0,94762.0,0.001]
[1735335134064,0.001,94765.0,94762.0,0.001]
[1735335134569,0.053845,94763.0,94762.0,0.001]
[1735335135867,0.052845,94763.0,94762.0,0.001]
[1735335136073,0.001,94765.0,94762.0,0.001]
[1735335136275,0.24311762,94763.0,94762.0,0.001]
[1735335136572,0.24311762,94763.0,94757.0,0.01275963]
[1735335136573,0.052846,94761.0,94757.0,0.01275963]
[1735335136772,0.051846,94761.0,94756.0,0.60294998]
[1735335137475,0.051846,94761.0,94756.0,0.24214998]
[1735335137660,0.051846,94761.0,94756.0,0.60294998]
[1735335138674,0.051846,94761.0,94756.0,0.413648]
[1735335138870,0.051846,94761.0,94756.0,0.4258665]
[1735335139068,0.051846,94761.0,94756.0,0.4288665]
[1735335139669,0.051846,94761.0,94757.0,0.052847]
[1735335139969,0.051846,94761.0,94758.0,1.5]
[1735335142274,0.052846,94761.0,94758.0,1.502]
[1735335144572,0.052846,94761.0,94759.0,0.18913972]
[1735335144878,0.052846,94761.0,94758.0,0.00348]
[1735335145079,0.052846,94761.0,94758.0,0.002]
[1735335145473,0.052846,94761.0,94760.0,1.5]
[1735335146978,0.052846,94761.0,94760.0,1.501]
[1735335147886,0.052846,94761.0,94760.0,1.6902968]
[1735335149286,0.052846,94761.0,94760.0,1.501]
[1735335153486,0.052846,94761.0,94760.0,0.001]
[1735335155981,0.06471614,94761.0,94760.0,0.001]
[1735335156493,0.42551614,94761.0,94760.0,0.001]
[1735335159391,0.05285,94753.0,94743.0,0.18926094]
[1735335159595,0.052856,94743.0,94741.0,0.25234792]
[1735335159892,0.031,94742.0,94741.0,0.25234792]
[1735335160593,0.031,94742.0,94730.0,0.18915566]
[1735335160791,0.3608,94736.0,94729.0,1.552863]
[1735335160995,0.052863,94731.0,94729.0,1.56489494]
[1735335161696,0.045863,94731.0,94729.0,1.51203194]
[1735335162195,0.046863,94731.0,94729.0,1.51603194]
[1735335162498,0.047863,94731.0,94729.0,0.02103194]
[1735335163591,0.047863,94731.0,94729.0,0.009]
[1735335165690,0.052874,94711.0,94710.0,0.18911669]
[1735335165994,0.3608,94718.0,94701.0,0.0326]
[1735335166192,0.052878,94704.0,94701.0,0.04439524]
[1735335166402,0.3608,94706.0,94701.0,0.04439524]
[1735335166704,0.052879,94702.0,94701.0,0.04439524]
[1735335166887,0.05144538,94702.0,94701.0,0.04439524]
[1735335167986,0.001,94706.0,94701.0,0.04439524]
[1735335168193,0.001,94702.0,94701.0,0.04439524]
[1735335168604,0.002,94702.0,94701.0,0.04439524]
[1735335171599,0.052879,94701.0,94700.0,0.1]
[1735335172491,0.413679,94701.0,94700.0,0.1]
[1735335174600,0.414679,94701.0,94700.0,0.1]
[1735335176793,0.414679,94701.0,94700.0,0.1010722]
[1735335179406,0.414679,94701.0,94683.0,0.0314]
[1735335179590,0.052889,94684.0,94683.0,0.0314]
[1735335180199,0.052893,94677.0,94670.0,0.052896]
[1735335180400,0.052894,94675.0,94669.0,0.031]
[1735335180605,0.052896,94670.0,94669.0,0.031]
[1735335181711,0.052901,94661.0,94660.0,1.5]
[1735335182598,0.052901,94661.0,94660.0,1.51174256]
[1735335183102,0.052901,94661.0,94660.0,1.5]
[1735335183305,0.052901,94661.0,94645.0,0.05291]
[1735335183306,0.052906,94652.0,94650.0,0.3608]
[1735335183498,0.052906,94652.0,94650.0,0.3927]
[1735335184205,0.052903,94658.0,94653.0,0.052906]
[1735335185205,0.001,94661.0,94650.0,0.3927]
[1735335185717,0.001,94658.0,94650.0,0.3927]
[1735335185900,0.052907,94652.0,94650.0,0.3927]
[1735335186101,0.052907,94652.0,94651.0,0.00126556]
[1735335187208,0.052907,94652.0,94651.0,0.00180189]
[1735335188015,0.052907,94651.0,94636.0,0.18804227]
[1735335188218,0.413715,94637.0,94636.0,0.18804227]
[1735335189104,0.05292,94618.0,94617.0,0.54884227]
[1735335190209,0.05292,94618.0,94617.0,0.18804227]
[1735335190814,0.001,94618.0,94607.0,0.3608]
[1735335191012,0.052925,94610.0,94607.0,0.3608]
[1735335191204,0.3608,94617.0,94600.0,0.28804227]
[1735335191408,0.41373,94601.0,94600.0,0.28804227]
[1735335192213,0.3608,94609.0,94600.0,0.4608]
[1735335192520,0.052924,94612.0,94600.0,0.4608]
[1735335192816,0.052924,94612.0,94601.0,0.0626]
[1735335193016,0.003,94618.0,94610.0,0.3608]
[1735335193410,0.003,94618.0,94601.0,0.0626]
[1735335193607,0.052926,94608.0,94601.0,0.0325]
[1735335194109,0.3608,94610.0,94601.0,0.0325]
[1735335194312,0.05292,94619.0,94603.0,0.3608]
[1735335194517,0.002,94618.0,94603.0,0.3608]
[1735335194714,0.001,94608.0,94603.0,0.3608]
[1735335195102,0.001,94608.0,94604.0,0.0332]
[1735335195303,0.002,94618.0,94604.0,0.0332]
[1735335195510,0.001,94610.0,94604.0,0.0332]
[1735335195917,0.002,94618.0,94604.0,0.0332]
[1735335196219,0.052925,94609.0,94604.0,0.0332]
[1735335196409,0.052925,94609.0,94605.0,1.5]
[1735335196921,0.05017602,94609.0,94605.0,1.5]
[1735335197511,0.001,94610.0,94605.0,1.5]
[1735335198011,0.053925,94609.0,94605.0,1.5]
[1735335198613,0.053925,94609.0,94604.0,0.0332]
[1735335199320,0.052925,94609.0,94604.0,0.0332]
[1735335200217,0.001,94609.0,94604.0,0.0332]
[1735335200424,0.052927,94607.0,94604.0,0.0332]
[1735335200721,0.052929,94602.0,94601.0,0.0325]
[1735335202423,0.053925,94609.0,94601.0,0.0325]
[1735335203111,0.001,94602.0,94601.0,0.0325]
[1735335203713,0.001,94607.0,94601.0,0.0325]
[1735335203918,0.052926,94608.0,94601.0,0.0325]
[1735335204424,0.001,94602.0,94601.0,0.0325]
[1735335205916,0.053927,94607.0,94601.0,0.0325]
[1735335206124,0.053927,94607.0,94603.0,0.3608]
[1735335206419,0.052927,94607.0,94603.0,0.3608]
[1735335207120,0.052929,94602.0,94600.0,0.1]
[1735335209219,0.053929,94602.0,94600.0,0.1]
[1735335213738,0.052924,94611.0,94604.0,0.052928]
[1735335213929,0.052923,94614.0,94607.0,0.052926]
[1735335214126,0.3608,94633.0,94610.0,0.3608]
[1735335214337,0.052917,94624.0,94620.0,0.3608]
[1735335214526,0.17851849,94631.0,94620.0,0.3608]
[1735335214726,0.17851849,94631.0,94629.0,0.3608]
[1735335215025,0.17851849,94631.0,94630.0,0.0329]
[1735335215934,0.052913,94631.0,94630.0,0.0329]
[1735335216123,0.061913,94631.0,94630.0,0.0329]
[1735335216737,0.067913,94631.0,94630.0,0.0329]
[1735335217129,0.067913,94631.0,94630.0,0.28362303]
[1735335218529,0.067913,94631.0,94630.0,0.0329]
[1735335224943,0.052906,94644.0,94630.0,0.085813]
[1735335225238,0.12560549,94658.0,94630.0,0.085813]
[1735335225239,0.052905,94645.0,94643.0,0.3608]
[1735335226040,0.006,94644.0,94643.0,0.3608]
[1735335226242,0.052908,94639.0,94638.0,0.3608]
[1735335228740,0.054908,94639.0,94638.0,0.3608]
[1735335229241,0.054908,94639.0,94638.0,0.3638]
[1735335229731,0.056908,94639.0,94638.0,0.3608]
[1735335230134,0.054908,94639.0,94638.0,0.3608]
[1735335230340,0.058908,94639.0,94638.0,0.3608]
[1735335232540,0.006,94639.0,94635.0,0.3608]
[1735335233949,0.05291,94636.0,94635.0,0.3608]
[1735335234834,0.003,94639.0,94630.0,0.0329]
[1735335235053,0.052912,94633.0,94632.0,0.3608]
[1735335236645,0.053912,94633.0,94632.0,0.3608]
[1735335237735,0.056912,94633.0,94632.0,0.3608]
[1735335246653,0.056912,94633.0,94632.0,0.413712]
[1735335246654,0.004,94633.0,94632.0,0.413712]
[1735335246955,0.16138816,94633.0,94632.0,0.413712]
[1735335247250,0.16138816,94633.0,94632.0,0.3608]
[1735335248146,0.001,94633.0,94632.0,0.413712]
[1735335248353,0.001,94633.0,94632.0,0.415712]
[1735335248746,0.15738816,94638.0,94632.0,1.8608]
[1735335248955,0.15738816,94638.0,94637.0,0.05291]
[1735335249547,0.15861691,94637.0,94636.0,0.05291]
[1735335249752,0.15861691,94637.0,94636.0,0.41371]
[1735335250651,0.12687864,94642.0,94641.0,0.052907]
[1735335251946,0.12887864,94642.0,94641.0,0.052907]
[1735335252147,0.12887864,94642.0,94641.0,0.053907]
[1735335252663,0.13087864,94642.0,94641.0,0.052907]
[1735335252960,0.004,94642.0,94641.0,0.052907]
[1735335253465,0.005,94642.0,94641.0,0.052907]
[1735335256164,0.005,94642.0,94639.0,0.0333]
[1735335256359,0.052908,94641.0,94639.0,0.0333]
[1735335257456,0.005,94642.0,94636.0,0.3608]
[1735335257766,0.05291,94637.0,94636.0,0.3608]
[1735335259558,0.05591,94637.0,94636.0,0.3608]
[1735335260060,0.052912,94634.0,94632.0,0.3608]
[1735335262171,0.055912,94634.0,94632.0,0.3608]
[1735335262673,0.058912,94634.0,94632.0,0.3608]
[1735335265469,0.006,94634.0,94629.0,0.052914]
[1735335265672,0.006,94634.0,94632.0,0.3608]
[1735335265673,0.052912,94633.0,94632.0,0.3608]
[1735335267164,0.055912,94633.0,94632.0,0.3608]
[1735335267373,0.058912,94633.0,94632.0,0.3608]
[1735335267671,0.055912,94633.0,94632.0,0.3608]
[1735335267867,0.060912,94633.0,94632.0,0.3618]
[1735335268270,0.055912,94633.0,94632.0,0.3618]
[1735335268473,0.060912,94633.0,94632.0,0.3618]
[1735335269486,0.062912,94633.0,94632.0,0.3618]
[1735335270091,0.057912,94633.0,94632.0,0.3618]
[1735335270294,0.064912,94633.0,94632.0,0.3618]
[1735335270798,0.064912,94633.0,94632.0,0.3608]
[1735335270987,0.065912,94633.0,94632.0,0.3618]
[1735335274190,0.065912,94633.0,94632.0,0.414712]
[1735335277307,0.065912,94633.0,94632.0,0.3618]
[1735335277697,0.065912,94633.0,94632.0,0.001]
[1735335278895,0.060912,94633.0,94632.0,0.001]
[1735335279099,0.066912,94633.0,94632.0,0.001]
[1735335279593,0.052915,94627.0,94626.0,0.01126319]
[1735335279798,0.052917,94623.0,94622.0,0.052918]
[1735335280209,0.014,94633.0,94621.0,0.3608]
[1735335280404,0.052918,94622.0,94621.0,0.3608]
[1735335281709,0.21133567,94622.0,94621.0,0.3608]
[1735335281897,0.21133567,94622.0,94621.0,0.37172697]
[1735335282300,0.21533567,94622.0,94621.0,0.37172697]
[1735335282707,0.21833567,94622.0,94621.0,0.37172697]
[1735335282907,0.059918,94622.0,94621.0,0.37172697]
[1735335283299,0.052921,94616.0,94611.0,0.0325]
[1735335283505,0.052924,94612.0,94611.0,0.0325]
[1735335285207,0.15847743,94613.0,94612.0,0.052924]
[1735335286217,0.12679764,94614.0,94612.0,0.052924]
[1735335286407,0.12679764,94614.0,94612.0,0.053924]
[1735335287315,0.12679764,94613.0,94612.0,0.053924]
[1735335287819,0.12879764,94613.0,94612.0,0.053924]
[1735335292418,0.18172064,94613.0,94612.0,0.053924]
[1735335294723,0.054923,94613.0,94612.0,0.001]
[1735335296714,0.054923,94613.0,94612.0,0.3618]
[1735335302623,0.06589182,94613.0,94612.0,0.3618]
[1735335304924,0.11736672,94613.0,94612.0,0.3618]
[1735335305119,0.06444372,94613.0,94600.0,0.51373]
[1735335305323,0.052929,94603.0,94600.0,0.51373]
[1735335306229,0.17974212,94603.0,94601.0,0.0319]
[1735335306618,0.18074212,94603.0,94601.0,0.0379]
[1735335307411,0.18074212,94603.0,94601.0,0.0369]
[1735335307611,0.18074212,94603.0,94601.0,0.0379]
[1735335308925,0.21244541,94603.0,94601.0,0.0379]
[1735335310228,0.15851641,94602.0,94601.0,0.0379]
[1735335311426,0.21244541,94603.0,94601.0,0.0379]
[1735335311628,0.21144541,94603.0,94601.0,0.0319]
[1735335311824,0.001,94602.0,94601.0,0.0379]
[1735335312332,0.001,94602.0,94601.0,0.0369]
[1735335312533,0.001,94602.0,94601.0,0.0379]
[1735335312730,0.21244541,94603.0,94601.0,0.0379]
[1735335312931,0.15851641,94602.0,94601.0,0.0379]
[1735335313232,0.15851641,94602.0,94601.0,0.0319]
[1735335313421,0.15951641,94602.0,94601.0,0.0379]
[1735335313621,0.15951641,94602.0,94601.0,0.3987]
[1735335314820,0.15851641,94602.0,94601.0,0.3987]
[1735335315326,0.21144541,94602.0,94601.0,0.3987]
[1735335315534,0.053929,94602.0,94601.0,0.3987]
[1735335316035,0.053929,94602.0,94601.0,0.007]
[1735335316223,0.117729,94602.0,94601.0,0.007]
[1735335316623,0.12880402,94602.0,94601.0,0.007]
[1735335317735,0.18028428,94602.0,94601.0,0.007]
[1735335320845,0.18028428,94602.0,94600.0,0.07389881]
[1735335321050,0.3608,94601.0,94600.0,0.07389881]
[1735335321951,0.3608,94601.0,94600.0,0.07489881]
[1735335322153,0.3608,94601.0,94600.0,0.08189881]
[1735335322553,0.41228026,94601.0,94600.0,0.07489881]
[1735335322743,0.41328026,94601.0,94600.0,0.08189881]
[1735335323441,0.60342116,94601.0,94600.0,0.08189881]
[1735335324646,0.41328026,94601.0,94600.0,0.08189881]
[1735335330857,0.41328026,94601.0,94600.0,0.0487982]
[1735335332959,0.60353032,94601.0,94600.0,0.0487982]
[1735335333358,0.65646032,94601.0,94600.0,0.0487982]
[1735335333767,0.46621026,94601.0,94600.0,0.0487982]
[1735335336752,0.052935,94592.0,94582.0,0.18953254]
[1735335336952,0.05294,94583.0,94582.0,0.18953254]
[1735335337164,0.41374,94583.0,94582.0,0.18953254]
[1735335337966,0.41374,94583.0,94570.0,0.03]
[1735335337967,0.048943,94577.0,94576.0,0.18953254]
[1735335338864,0.048943,94577.0,94576.0,0.55033254]
[1735335339075,0.048943,94577.0,94576.0,0.60327654]
[1735335339368,0.049943,94577.0,94576.0,0.55033254]
[1735335339865,0.03910767,94586.0,94577.0,0.052943]
[1735335340056,0.03910767,94586.0,94576.0,0.6608]
[1735335340057,0.14318794,94617.0,94585.0,0.413739]
[1735335340254,0.052924,94612.0,94604.0,0.413728]
[1735335340467,0.052925,94609.0,94604.0,0.413728]
[1735335340763,0.15104343,94606.0,94604.0,0.413728]
[1735335341176,0.12674944,94611.0,94605.0,1.5]
[1735335341363,0.001,94606.0,94605.0,1.5]
[1735335342662,0.001,94606.0,94605.0,0.052927]
[1735335343369,0.001,94606.0,94605.0,0.24253044]
[1735335343664,0.10752959,94620.0,94605.0,0.18960344]
[1735335343665,0.21505918,94620.0,94605.0,0.18960344]
[1735335343873,0.052926,94607.0,94605.0,0.18960344]
[1735335344567,0.052927,94605.0,94604.0,0.3608]
[1735335346766,0.052924,94611.0,94605.0,0.052927]
[1735335347161,0.10752959,94620.0,94605.0,0.052927]
[1735335347361,0.052925,94610.0,94605.0,0.052927]
[1735335349169,0.001,94611.0,94605.0,0.052927]
[1735335349378,0.052925,94609.0,94605.0,0.052927]
[1735335349873,0.052925,94609.0,94608.0,0.3608]
[1735335350775,0.052925,94609.0,94605.0,0.052927]
[1735335350968,0.052925,94609.0,94608.0,0.3608]
[1735335351273,0.054925,94609.0,94608.0,0.3608]
[1735335359171,0.052931,94598.0,94597.0,0.18960344]
[1735335360363,0.053931,94598.0,94595.0,0.052933]
[1735335360772,0.052935,94593.0,94590.0,0.3608]
[1735335361282,0.119135,94592.0,94590.0,0.3608]
[1735335363072,0.052938,94586.0,94585.0,0.18960344]
[1735335364386,0.052938,94586.0,94582.0,0.05294]
[1735335364772,0.001,94586.0,94585.0,0.052939]
[1735335364980,0.001,94586.0,94585.0,0.413739]
[1735335365380,0.001,94586.0,94585.0,1.913739]
[1735335365576,0.001,94586.0,94585.0,2.213739]
[1735335366285,0.033,94606.0,94585.0,2.1608]
[1735335366491,0.033,94606.0,94605.0,0.413727]
[1735335367186,0.033,94606.0,94605.0,1.913727]
[1735335367483,0.052915,94627.0,94606.0,0.052927]
[1735335367681,0.0625,94622.0,94610.0,0.10752959]
[1735335367982,0.0625,94622.0,94606.0,0.052927]
[1735335367983,0.0625,94622.0,94621.0,0.3608]
[1735335368883,0.0625,94622.0,94621.0,0.413718]
[1735335369588,0.0645,94622.0,94621.0,0.413718]
[1735335370186,0.0695,94622.0,94621.0,0.413718]
[1735335370484,0.0715,94622.0,94621.0,0.413718]
[1735335372585,0.09824277,94633.0,94632.0,0.052912]
[1735335372786,0.02747555,94633.0,94632.0,0.713712]
[1735335373086,0.18985754,94639.0,94632.0,0.713712]
[1735335373087,0.18985754,94639.0,94638.0,0.052909]
[1735335373288,0.18985754,94639.0,94638.0,0.413709]
[1735335373489,0.18985754,94639.0,94638.0,0.713709]
[1735335374093,0.0311,94652.0,94638.0,0.713709]
[1735335374294,0.0311,94652.0,94651.0,0.413702]
[1735335374881,0.0311,94652.0,94651.0,1.913702]
[1735335376095,0.0391,94652.0,94651.0,1.914702]
[1735335376594,0.0441,94652.0,94651.0,0.415702]
[1735335378695,0.0441,94652.0,94651.0,0.3628]
[1735335378891,0.097001,94652.0,94651.0,0.002]
[1735335379681,0.0441,94652.0,94650.0,0.052902]
[1735335379888,0.013,94652.0,94650.0,0.052902]
[1735335380593,0.013,94652.0,94651.0,0.3608]
[1735335381194,0.013,94652.0,94651.0,1.8608]
[1735335381892,0.014,94652.0,94651.0,1.8608]
[1735335382988,0.015,94652.0,94651.0,1.8608]
[1735335383290,0.009,94652.0,94651.0,1.8608]
[1735335383485,0.006,94652.0,94651.0,1.8608]
[1735335383684,0.014,94652.0,94651.0,1.8608]
[1735335384294,0.014,94652.0,94651.0,2.1608]
[1735335384795,0.014,94652.0,94651.0,1.8608]
[1735335385191,0.0301,94667.0,94651.0,1.8608]
[1735335385391,0.0301,94667.0,94666.0,0.3608]
[1735335386494,0.0361,94667.0,94666.0,0.3608]
[1735335386694,0.0451,94667.0,94666.0,0.3608]
[1735335388597,0.0471,94667.0,94666.0,0.3618]
[1735335388995,0.0471,94667.0,94666.0,0.001]
[1735335389294,0.052901,94652.0,94647.0,0.3608]
[1735335389489,0.052902,94651.0,94643.0,0.052906]
[1735335389690,0.052902,94650.0,94643.0,1.552906]
[1735335390197,0.052902,94650.0,94643.0,1.5]
[1735335390396,0.052902,94650.0,94644.0,0.052905]
[1735335390794,0.054902,94650.0,94645.0,0.052905]
[1735335391800,0.054902,94650.0,94646.0,0.052904]
[1735335392299,0.060902,94650.0,94646.0,0.052904]
[1735335392998,0.056902,94650.0,94646.0,0.052904]
[1735335393199,0.061902,94650.0,94646.0,0.052904]
[1735335395100,0.061902,94650.0,94648.0,0.3608]
[1735335396798,0.062902,94650.0,94648.0,0.3618]
[1735335397208,0.062902,94650.0,94648.0,0.37264535]
[1735335397397,0.01,94650.0,94648.0,0.37264535]
[1735335398199,0.0328,94649.0,94648.0,0.37264535]
[1735335399401,0.0428,94649.0,94648.0,0.37264535]
[1735335403708,0.0428,94649.0,94648.0,0.56157034]
[1735335405010,0.0428,94649.0,94648.0,0.37264535]
[1735335406314,0.0428,94649.0,94648.0,0.01184535]
[1735335411812,0.0428,94649.0,94648.0,0.06474835]
[1735335413414,0.0428,94649.0,94648.0,0.42554835]
[1735335415814,0.0428,94649.0,94648.0,0.06474835]
[1735335416717,0.0428,94649.0,94648.0,0.31773823]
[1735335418009,0.0428,94649.0,94648.0,0.06474835]
[1735335421409,0.0428,94649.0,94645.0,0.31340379]
[1735335421712,0.052905,94646.0,94645.0,0.31340379]
[1735335421918,0.0428,94649.0,94645.0,0.25324601]
[1735335422216,0.0428,94649.0,94648.0,0.052903]
[1735335422613,0.0388,94649.0,94648.0,0.052903]
[1735335422809,0.01,94649.0,94648.0,0.052903]
[1735335423013,0.008,94649.0,94648.0,0.052903]
[1735335423214,0.18985754,94654.0,94648.0,2.05354892]
[1735335423423,0.18985754,94654.0,94653.0,0.413701]
[1735335423808,0.18285754,94654.0,94653.0,0.413701]
[1735335424013,0.18285754,94654.0,94653.0,1.913701]
[1735335424424,0.004,94654.0,94653.0,2.27290035]
[1735335425223,0.012,94654.0,94653.0,2.27390035]
[1735335425928,0.013,94654.0,94653.0,2.27390035]
[1735335426224,0.085789,94674.0,94653.0,2.22099935]
[1735335426423,0.085789,94674.0,94672.0,0.3608]
[1735335427427,0.089789,94674.0,94672.0,0.3608]
[1735335427811,0.097789,94674.0,94672.0,0.3618]
[1735335428018,0.012,94674.0,94673.0,0.052889]
[1735335428217,0.012,94674.0,94673.0,0.413689]
[1735335428622,0.012,94674.0,94673.0,2.419029]
[1735335428823,0.008,94674.0,94673.0,2.419029]
[1735335429023,0.0316,94687.0,94686.0,0.052882]
[1735335429219,0.0316,94687.0,94686.0,0.413682]
[1735335429624,0.0316,94687.0,94686.0,1.913682]
[1735335431532,0.052867,94714.0,94686.0,1.8628]
[1735335431730,0.0307,94702.0,94699.0,0.052875]
[1735335432531,0.0317,94712.0,94699.0,0.413675]
[1735335432922,0.103,94700.0,94699.0,0.413675]